fUSD/lending_fUSD_20240318
["ID","MTS","AMOUNT","RATE_DAILY","PERIOD"]
[319420131,1710725467195,-500.0,0.00029365,4]
[319420132,1710725467205,-500.0,0.00029365,4]
[319420133,1710725467215,-500.0,0.00029365,4]
[319420134,1710725467224,-500.0,0.00029365,4]
[319420135,1710725467234,-500.0,0.00029365,4]
[319420136,1710725467244,-500.0,0.00029365,4]
[319420137,1710725467254,-500.0,0.00029365,4]
[319420138,1710725467264,-500.0,0.00029365,4]
[319420139,1710725467274,-500.0,0.00029365,4]
[319420140,1710725467284,-500.0,0.00029365,4]
[319420141,1710725467295,-500.0,0.00029365,4]
[319420142,1710725467306,-500.0,0.00029365,4]
[319420143,1710725467316,-500.0,0.00029365,4]
[319420144,1710725467325,-500.0,0.00029365,4]
[319420145,1710725467335,-500.0,0.00029365,4]
[319420146,1710725467350,-500.0,0.00029365,4]
[319420147,1710725467360,-291.0,0.00029365,4]
[319420148,1710725467371,-1341.6497656,0.00029381,2]
[319420149,1710725467381,-152.37,0.000294,2]
[319420150,1710725467391,-152.37,0.000294,2]
[319420151,1710725467401,-152.37,0.000294,2]
[319420152,1710725467412,-152.37,0.000294,2]
[319420153,1710725467421,-152.37,0.000294,2]
[319420154,1710725467431,-152.37,0.000294,2]
[319420155,1710725467441,-152.37,0.000294,2]
[319420156,1710725467452,-152.37,0.000294,2]
[319420157,1710725467462,-152.37,0.000294,2]
[319420158,1710725467472,-152.37,0.000294,2]
[319420159,1710725467483,-152.37,0.000294,2]
[319420160,1710725467492,-152.37,0.000294,2]
[319420161,1710725467502,-152.37,0.000294,2]
[319420162,1710725467512,-152.37,0.000294,2]
[319420163,1710725467522,-152.37,0.000294,2]
[319420164,1710725467532,-152.37,0.000294,2]
[319420165,1710725467544,-152.37,0.000294,2]
[319420166,1710725467554,-152.37,0.000294,2]
[319420167,1710725467566,-152.0,0.00029404,6]
[319420168,1710725467576,-666.5,0.00029432,2]
[319420169,1710725467585,-2000.0,0.0002946,2]
[319420170,1710725467598,-200.0,0.0002946,2]
[319420171,1710725467608,-2000.0,0.0002946,2]
[319420172,1710725467619,-200.0,0.0002946,2]
[319420173,1710725467630,-2000.0,0.0002946,2]
[319420174,1710725467640,-200.0,0.0002946,2]
[319420175,1710725467650,-200.0,0.0002946,2]
[319420176,1710725467661,-1475.39802741,0.0002948,2]
[319420177,1710725467671,-1012.16536019,0.000295,3]
[319420178,1710725467681,-2100.0,0.000295,2]
[319420179,1710725467691,-300.0,0.00029589,5]
[319420180,1710725467700,-150.0,0.00029589,2]
[319420181,1710725467711,-510.0,0.00029589,120]
[319420182,1710725467721,-1341.6497656,0.00029653,2]
[319420183,1710725467730,-152.37,0.000297,2]
[319420184,1710725467739,-152.37,0.000297,2]
[319420185,1710725467748,-152.37,0.000297,2]
[319420186,1710725467758,-152.37,0.000297,2]
[319420187,1710725467767,-152.37,0.000297,2]
[319420188,1710725467776,-152.37,0.000297,2]
[319420189,1710725467786,-152.37,0.000297,2]
[319420190,1710725467795,-152.37,0.000297,2]
[319420191,1710725467804,-152.37,0.000297,2]
[319420192,1710725467814,-152.37,0.000297,2]
[319420193,1710725467823,-152.37,0.000297,2]
[319420194,1710725467833,-152.37,0.000297,2]
[319420195,1710725467843,-152.37,0.000297,2]
[319420196,1710725467857,-152.37,0.000297,2]
[319420197,1710725467866,-152.37,0.000297,2]
[319420198,1710725467876,-152.37,0.000297,2]
[319420199,1710725467885,-152.37,0.000297,2]
[319420200,1710725467894,-152.37,0.000297,2]
[319420201,1710725467905,-3000.0,0.000297,2]
[319420202,1710725467915,-1475.39802741,0.00029746,2]
[319420203,1710725467924,-78399.39971856,0.0002975,2]
[319420204,1710725467934,-2000.0,0.00029755,2]
[319420205,1710725467943,-200.0,0.00029755,2]
[319420206,1710725467952,-2000.0,0.00029755,2]
[319420207,1710725467963,-200.0,0.00029755,2]
[319420208,1710725467972,-2000.0,0.00029755,2]
[319420209,1710725467981,-200.0,0.00029755,2]
[319420210,1710725467991,-200.0,0.00029755,2]
[319420211,1710725468001,-1582.23394792,0.00029784,30]
[319420212,1710725468010,-3742.214592,0.000298,2]
[319420213,1710725468020,-2993.771673,0.000298,2]
[319420214,1710725468030,-510.0,0.00029863,120]
[319420215,1710725468040,-317.98,0.0002987,2]
[319420216,1710725468049,-1000.0,0.000299,2]
[319420217,1710725468059,-9183.96,0.000299,2]
[319420218,1710725468069,-9183.96,0.000299,2]
[319420219,1710725468079,-9183.96,0.000299,2]
[319420220,1710725468088,-9183.96,0.000299,2]
[319420221,1710725468101,-9183.96,0.000299,2]
[319420222,1710725468110,-9183.96,0.000299,2]
[319420223,1710725468120,-9183.96,0.000299,2]
[319420224,1710725468129,-9183.96,0.000299,2]
[319420225,1710725468139,-9183.96,0.000299,2]
[319420226,1710725468149,-9183.96,0.000299,2]
[319420227,1710725468158,-9183.96,0.000299,2]
[319420228,1710725468168,-9183.96,0.000299,2]
[319420229,1710725468177,-9183.96,0.000299,2]
[319420230,1710725468187,-9183.96,0.000299,2]
[319420231,1710725468197,-9183.96,0.000299,2]
[319420232,1710725468206,-9183.96,0.000299,2]
[319420233,1710725468216,-9183.96,0.000299,2]
[319420234,1710725468226,-9183.96,0.000299,2]
[319420235,1710725468236,-9183.96,0.000299,2]
[319420236,1710725468245,-9183.96,0.000299,2]
[319420237,1710725468255,-1341.6497656,0.00029906,2]
[319420238,1710725468264,-5047.86410616,0.0002999,2]
[319420239,1710725468273,-155.0,0.0003,5]
[319420240,1710725468284,-713.53791425,0.0003,30]
[319420241,1710725468294,-155.0,0.0003,4]
[319420242,1710725468303,-27454.23828888,0.0003,4]
[319420243,1710725468313,-3299.93737947,0.0003,2]
[319420244,1710725468323,-1569.23351296,0.0003,4]
[319420245,1710725468333,-40484.38910228,0.0003,4]
[319420246,1710725468346,-3200.0,0.0003,2]
[319420247,1710725468360,-1068.87614222,0.0003,30]
[319420248,1710725468378,-9455.5000557,0.0003,7]
[319420249,1710725468389,-246.7988565,0.0003,4]
[319420250,1710725468399,-484.6459151,0.0003,4]
[319420251,1710725468410,-155.20795377,0.0003,4]
[319420252,1710725468419,-406.1924908,0.0003,2]
[319420253,1710725468429,-9163.83331157,0.0003,2]
[319420254,1710725468439,-150.0,0.0003,2]
[319420255,1710725468449,-155.03497468,0.0003,2]
[319420256,1710725468459,-97572.2769026,0.0003,2]
[319420257,1710725468468,-424.57482178,0.0003,7]
[319420258,1710725468478,-3500.81659152,0.0003,14]
[319420259,1710725468487,-1501.6348088,0.0003,2]
[319420260,1710725468496,-13350.27825571,0.0003,2]
[319420261,1710725468506,-125834.61309839,0.0003,2]
[319420262,1710725468516,-345.50509845,0.0003,2]
[319420263,1710725468527,-9340.32887929,0.0003,2]
[319420264,1710725468537,-240.0,0.0003,120]
[319420265,1710725468549,-1625769.50913155,0.0003,7]
[319420266,1710725468952,-1101239.63517507,0.0003,7]
[319420267,1710725468961,-2000.0,0.0003,14]
[319420268,1710725468970,-2042.71794106,0.0003,7]
[319420269,1710725468979,-314.65681211,0.0003,2]
[319420270,1710725468988,-8646.07252617,0.0003,3]
[319420271,1710725468997,-569.26553867,0.0003,7]
[319420272,1710725469006,-1692.9462051,0.0003,2]
[319420273,1710725469015,-426.2939439,0.0003,7]
[319420274,1710725469024,-600.0,0.0003,31]
[319420275,1710725469033,-5000.0,0.0003,3]
[319420276,1710725469042,-2100.0,0.0003,2]
[319420277,1710725469052,-300.0,0.0003,120]
[319420278,1710725469061,-500.0,0.0003,2]
[319420279,1710725469070,-151.0,0.0003,7]
[319420280,1710725469079,-152.37,0.0003,2]
[319420281,1710725469089,-152.37,0.0003,2]
[319420282,1710725469098,-152.37,0.0003,2]
[319420283,1710725469107,-152.37,0.0003,2]
[319420284,1710725469116,-152.37,0.0003,2]
[319420285,1710725469126,-152.37,0.0003,2]
[319420286,1710725469135,-152.37,0.0003,2]
[319420287,1710725469144,-152.37,0.0003,2]
[319420288,1710725469153,-152.37,0.0003,2]
[319420289,1710725469162,-151.0,0.0003,7]
[319420290,1710725469172,-151.0,0.0003,7]
[319420291,1710725469181,-151.0,0.0003,5]
[319420292,1710725469191,-151.0,0.0003,7]
[319420293,1710725469201,-243.480741,0.0003,7]
[319420294,1710725469210,-151.0,0.0003,7]
[319420295,1710725469220,-151.0,0.0003,7]
[319420296,1710725469229,-157.669481,0.0003,7]
[319420297,1710725469238,-157.669481,0.0003,7]
[319420298,1710725469248,-151.0,0.0003,7]
[319420299,1710725469258,-150.0,0.0003,2]
[319420300,1710725469267,-151.0,0.0003,7]
[319420301,1710725469278,-151.0,0.0003,7]
[319420302,1710725469288,-151.0,0.0003,7]
[319420303,1710725469298,-151.0,0.0003,7]
[319420304,1710725469309,-151.0,0.0003,7]
[319420305,1710725469318,-205.0,0.0003,2]
[319420306,1710725469328,-151.0,0.0003,7]
[319420307,1710725469337,-210.05691802,0.0003,7]
[319420308,1710725469349,-151.39357,0.0003,7]
[319420309,1710725469358,-224.7,0.0003,2]
[319420310,1710725469368,-224.7,0.0003,2]
[319420311,1710725469378,-224.7,0.0003,2]
[319420312,1710725469388,-224.7,0.0003,2]
[319420313,1710725469398,-224.7,0.0003,2]
[319420314,1710725469408,-224.7,0.0003,2]
[319420315,1710725469419,-224.7,0.0003,2]
[319420316,1710725469430,-154.458886,0.0003,7]
[319420317,1710725469442,-224.7,0.0003,2]
[319420318,1710725469453,-224.7,0.0003,2]
[319420319,1710725469464,-224.7,0.0003,2]
[319420320,1710725469475,-224.7,0.0003,2]
[319420321,1710725469485,-224.7,0.0003,2]
[319420322,1710725469495,-224.7,0.0003,2]
[319420323,1710725469506,-224.7,0.0003,2]
[319420324,1710725469517,-224.7,0.0003,2]
[319420325,1710725469528,-224.7,0.0003,2]
[319420326,1710725469540,-224.7,0.0003,2]
[319420327,1710725469551,-224.7,0.0003,2]
[319420328,1710725469563,-224.7,0.0003,2]
[319420329,1710725469574,-224.7,0.0003,2]
[319420330,1710725469584,-224.7,0.0003,2]
[319420331,1710725469594,-224.7,0.0003,2]
[319420332,1710725469608,-224.7,0.0003,2]
[319420333,1710725469620,-224.7,0.0003,2]
[319420334,1710725469630,-224.7,0.0003,2]
[319420335,1710725469639,-224.7,0.0003,2]
[319420336,1710725469649,-224.7,0.0003,2]
[319420337,1710725469658,-224.7,0.0003,2]
[319420338,1710725469668,-224.7,0.0003,2]
[319420339,1710725469678,-224.7,0.0003,2]
[319420340,1710725469687,-224.7,0.0003,2]
[319420341,1710725469697,-224.7,0.0003,2]
[319420342,1710725469706,-224.7,0.0003,2]
[319420343,1710725469715,-2000.0,0.00030053,2]
[319420344,1710725469726,-200.0,0.00030053,2]
[319420345,1710725469736,-2000.0,0.00030053,2]
[319420346,1710725469746,-200.0,0.00030053,2]
[319420347,1710725469755,-1848.03328442,0.00030053,2]
[319420348,1710725469764,-200.0,0.00030053,2]
[319420349,1710725469775,-200.0,0.00030053,2]
[319420350,1710725469784,-1475.39802741,0.0003012,2]
[319420351,1710725469794,-3321.4725,0.00030136,2]
[319420352,1710725469803,-510.0,0.00030136,120]
[319420353,1710725469813,-2222.5,0.00030137,10]
[319420354,1710725469822,-300.0,0.00030137,5]
[319420355,1710725469831,-150.0,0.00030137,2]
[319420356,1710725469841,-155.0,0.00030138,2]
[319420357,1710725469852,-1475.39802741,0.00030169,2]
[319420358,1710725469861,-1010.62,0.0003018,2]
[319420359,1710725469871,-392.0,0.00030205,2]
[319420360,1710725469880,-378.0,0.00030205,2]
[319420361,1710725469890,-154.12575019,0.00030208,7]
[319420362,1710725469900,-7825.4,0.00030237,21]
[319420363,1710725469910,-300.0,0.0003025,120]
[319420364,1710725469918,-1341.6497663,0.00030268,2]
[319420365,1710725469929,-533.417863,0.000303,2]
[319420366,1710725469938,-3000.0,0.00030372,2]
[319420367,1710725469948,-357.0,0.00030372,2]
[319420368,1710725469957,-1136.0,0.00030372,2]
[319420369,1710725469967,-800.0,0.00030372,2]
[319420370,1710725469977,-1458.0,0.00030372,2]
[319420371,1710725469986,-2414.0,0.00030372,2]
[319420372,1710725469995,-1623.0,0.00030372,2]
[319420373,1710725470004,-213.0,0.00030372,2]
[319420374,1710725470014,-152.39021987,0.0003038,7]
[319420375,1710725470023,-510.0,0.0003041,120]
[319420376,1710725470033,-152.0,0.00030454,7]
[319420377,1710725470042,-300.0,0.000305,120]
[319420378,1710725470053,-154.12575019,0.000305,7]
[319420379,1710725470062,-154.12575019,0.00030574,7]
[319420380,1710725470072,-1010.62,0.00030595,2]
[319420381,1710725470081,-221.377235,0.0003061,2]
[319420382,1710725470090,-179.343252,0.0003061,2]
[319420383,1710725470101,-175.931758,0.0003061,2]
[319420384,1710725470110,-174.469426,0.0003061,2]
[319420385,1710725470123,-178.474444,0.0003061,2]
[319420386,1710725470131,-175.613704,0.0003061,2]
[319420387,1710725470141,-167.577501,0.0003061,2]
[319420388,1710725470152,-198.081993,0.0003061,2]
[319420389,1710725470162,-150.80584847,0.00030633,7]
[319420390,1710725470171,-1475.39802741,0.00030647,2]
[319420391,1710725470181,-510.0,0.00030684,120]
[319420392,1710725470190,-300.0,0.00030685,5]
[319420393,1710725470199,-150.0,0.00030685,2]
[319420394,1710725470209,-1038.0,0.0003071,2]
[319420395,1710725470218,-300.0,0.0003075,120]
[319420396,1710725470228,-5239.100429,0.000308,2]
[319420397,1710725470240,-144270.29605865,0.000308,2]
[319420398,1710725470250,-4191.280343,0.000308,2]
[319420399,1710725470260,-3991.695568,0.000308,2]
[319420400,1710725470269,-250.0,0.000308,30]
[319420401,1710725470278,-5388.789011,0.000308,2]
[319420402,1710725470287,-4041.591759,0.000308,2]
[319420403,1710725470296,-2694.394505,0.000308,2]
[319420404,1710725470305,-389.336264,0.000308,3]
[319420405,1710725470315,-300.0,0.000308,2]
[319420406,1710725470324,-1475.39802753,0.00030841,2]
[319420407,1710725470334,-317.98,0.0003094,2]
[319420408,1710725470343,-3000.0,0.0003095,2]
[319420409,1710725470355,-510.0,0.00030958,120]
[319420410,1710725470364,-221.377235,0.00030993,2]
[319420411,1710725470374,-26300.81209665,0.00031,3]
[319420412,1710725470383,-500.0,0.00031,30]
[319420413,1710725470392,-500.0,0.00031,30]
[319420414,1710725470402,-284.76,0.00031,3]
[319420415,1710725470411,-500.0,0.00031,30]
[319420416,1710725470420,-500.00000001,0.00031,30]
[319420417,1710725470430,-228350.24975061,0.00031,5]
[319420418,1710725470439,-156754.69418704,0.00031,30]
[319420419,1710725470448,-2161.78545092,0.00031,2]
[319420420,1710725470458,-2000.00000001,0.00031,2]
[319420421,1710725470467,-600.0,0.00031,32]
[319420422,1710725470476,-2100.0,0.00031,2]
[319420423,1710725470486,-350.0,0.00031,31]
[319420424,1710725470496,-2005.73988974,0.00031,2]
[319420425,1710725470505,-300.0,0.00031,120]
[319420426,1710725470515,-1150.0,0.00031,3]
[319420427,1710725470528,-9183.96,0.000311,2]
[319420428,1710725470537,-9183.96,0.000311,2]
[319420429,1710725470547,-9183.96,0.000311,2]
[319420430,1710725470556,-9183.96,0.000311,2]
[319420431,1710725470566,-9183.96,0.000311,2]
[319420432,1710725470576,-9183.96,0.000311,2]
[319420433,1710725470585,-9183.96,0.000311,2]
[319420434,1710725470595,-9183.96,0.000311,2]
[319420435,1710725470606,-9183.96,0.000311,2]
[319420436,1710725470616,-9183.96,0.000311,2]
[319420437,1710725470626,-8246.75108786,0.000311,2]
[319420438,1710725470659,-264.73457825,0.0001863,2]
[319420439,1710725470669,-1500.0,0.0002863,2]
[319420440,1710725470678,-224.7,0.0003,2]
[319420441,1710725470687,-39.84025149,0.0003,2]
[319420442,1710725470714,-1899.34,0.0001863,2]
[319420443,1710725470724,-857.3057912,0.0002745,2]
[319420444,1710725470838,248.94113477,0.00011321,2]
[319420445,1710725470904,-316.51634377,0.0001863,2]
[319420446,1710725470914,-1899.34,0.0001863,2]
[319420447,1710725470924,-1899.34,0.0001863,2]
[319420448,1710725470934,-1899.34,0.0001863,2]
[319420449,1710725470943,-1899.40695855,0.0001863,2]
[319420450,1710725470953,-1500.0,0.00027343,2]
[319420451,1710725470962,-1500.0,0.00027388,2]
[319420452,1710725470972,-642.6942088,0.0002745,2]
[319420453,1710725470981,-1517.59139081,0.00027715,2]
[319420454,1710725471105,-1500.0,0.00027942,2]
[319420455,1710725471114,-1500.0,0.00028022,2]
[319420456,1710725471123,-1500.0,0.00028029,2]
[319420457,1710725471132,-1500.0,0.00028379,2]
[319420458,1710725471140,-1500.0,0.00028539,2]
[319420459,1710725471150,-1500.0,0.00028697,2]
[319420460,1710725471159,-184.85974851,0.0003,2]
[319420461,1710725471168,-224.7,0.0003,2]
[319420462,1710725471177,-224.7,0.0003,2]
[319420463,1710725471186,-224.7,0.0003,2]
[319420464,1710725471195,-224.7,0.0003,2]
[319420465,1710725471205,-224.7,0.0003,2]
[319420466,1710725471214,-224.7,0.0003,2]
[319420467,1710725471224,-224.7,0.0003,2]
[319420468,1710725471234,-224.7,0.0003,2]
[319420469,1710725471244,-224.7,0.0003,2]
[319420470,1710725471254,-224.7,0.0003,2]
[319420471,1710725471264,-224.7,0.0003,2]
[319420472,1710725471274,-937.20891214,0.000311,2]
[319420473,1710725471283,-9183.96,0.000311,2]
[319420474,1710725471293,-566.39903568,0.000311,2]
[319420475,1710725471358,-224.7,0.0003,2]
[319420476,1710725471367,-224.7,0.0003,2]
[319420477,1710725471376,-6901.9134819,0.000311,2]
[319420478,1710725471389,-1715.64748242,0.000311,2]
[319420479,1710725471398,-5307.32849114,0.000311,2]
[319420480,1710725471409,-1969.6314001,0.000311,2]
[319420481,1710725471429,-224.7,0.0003,2]
[319420482,1710725471438,-1719.96091872,0.000311,2]
[319420483,1710725471573,-247.82957773,0.0001863,2]
[319420484,1710725471582,-605.013,0.00023692,2]
[319420485,1710725471592,-1096.88619163,0.00029899,2]
[319420486,1710725471605,-1007.40782277,0.00029899,2]
[319420487,1710725471618,-3663.93286402,0.00029899,2]
[319420488,1710725471837,-244.93544612,0.0001863,2]
[319420489,1710725471846,-516.7,0.00024457,2]
[319420490,1710725471855,-603.0,0.00026692,2]
[319420491,1710725471864,-1368.32312158,0.00029899,2]
[319420492,1710725471873,-2526.56710332,0.00029899,2]
[319420493,1710725471885,-2186.17239326,0.00029899,2]
[319420494,1710725471905,-603.0,0.00029692,2]
[319420495,1710725471914,-1182.53618659,0.00029899,2]
[319420496,1710725472277,-505.87284534,0.00018629,2]
[319420497,1710725472286,-450.3622865,0.0001863,2]
[319420498,1710725472295,-513.88093233,0.0001863,2]
[319420499,1710725472308,-150.0,0.00019178,2]
[319420500,1710725472317,-150.0,0.00019683,2]
[319420501,1710725472326,-150.0,0.00020187,2]
[319420502,1710725472335,-180.0,0.00020729,2]
[319420503,1710725472344,-1264.0,0.00023692,2]
[319420504,1710725472355,-1250.0,0.00023692,2]
[319420505,1710725472364,-282.0,0.00023864,2]
[319420506,1710725472373,-282.0,0.0002411,2]
[319420507,1710725472383,-408.41,0.0002432,2]
[319420508,1710725472392,-282.0,0.00024356,2]
[319420509,1710725472402,-414.91,0.00024457,2]
[319420510,1710725472412,-150.0,0.00024457,2]
[319420511,1710725472421,-150.0,0.00024457,2]
[319420512,1710725472430,-282.0,0.00024602,2]
[319420513,1710725472440,-282.0,0.00024848,2]
[319420514,1710725472450,-282.0,0.00025094,2]
[319420515,1710725472459,-282.0,0.0002534,2]
[319420516,1710725472468,-1264.0,0.00026692,2]
[319420517,1710725472477,-575.93972176,0.00026692,2]
[319420518,1710725472489,-674.06027824,0.00026692,2]
[319420519,1710725472498,-1264.0,0.00029692,2]
[319420520,1710725472508,-24.93025519,0.00029899,2]
[319420521,1710725472520,-2802.24406164,0.00029899,2]
[319420522,1710725472530,-155.75715437,0.00029998,5]
[319420523,1710725472542,-224.7,0.0003,2]
[319420524,1710725472552,-224.7,0.0003,2]
[319420525,1710725472561,-224.7,0.0003,2]
[319420526,1710725472571,-224.7,0.0003,2]
[319420527,1710725472582,-224.7,0.0003,2]
[319420528,1710725472591,-224.7,0.0003,2]
[319420529,1710725472602,-224.7,0.0003,2]
[319420530,1710725472612,-224.7,0.0003,2]
[319420531,1710725472622,-224.7,0.0003,2]
[319420532,1710725472632,-224.7,0.0003,2]
[319420533,1710725472642,-224.7,0.0003,2]
[319420534,1710725472651,-224.7,0.0003,2]
[319420535,1710725472661,-224.7,0.0003,2]
[319420536,1710725472671,-224.7,0.0003,2]
[319420537,1710725472680,-224.7,0.0003,2]
[319420538,1710725472690,-224.7,0.0003,2]
[319420539,1710725472699,-224.7,0.0003,2]
[319420540,1710725472709,-224.7,0.0003,2]
[319420541,1710725472718,-224.7,0.0003,2]
[319420542,1710725472728,-224.7,0.0003,2]
[319420543,1710725472737,-224.7,0.0003,2]
[319420544,1710725472746,-224.7,0.0003,2]
[319420545,1710725472756,-224.7,0.0003,2]
[319420546,1710725472765,-224.7,0.0003,2]
[319420547,1710725472775,-224.7,0.0003,2]
[319420548,1710725472784,-224.7,0.0003,2]
[319420549,1710725472794,-224.7,0.0003,2]
[319420550,1710725472803,-224.7,0.0003,2]
[319420551,1710725472813,-224.7,0.0003,2]
[319420552,1710725472822,-224.7,0.0003,2]
[319420553,1710725472831,-224.7,0.0003,2]
[319420554,1710725472840,-224.7,0.0003,2]
[319420555,1710725472850,-224.7,0.0003,2]
[319420556,1710725472860,-224.7,0.0003,2]
[319420557,1710725472869,-224.7,0.0003,2]
[319420558,1710725472878,-224.7,0.0003,2]
[319420559,1710725472887,-224.7,0.0003,2]
[319420560,1710725472896,-224.7,0.0003,2]
[319420561,1710725472906,-224.7,0.0003,2]
[319420562,1710725472915,-224.7,0.0003,2]
[319420563,1710725472925,-224.7,0.0003,2]
[319420564,1710725472934,-224.7,0.0003,2]
[319420565,1710725472944,-224.7,0.0003,2]
[319420566,1710725472954,-224.7,0.0003,2]
[319420567,1710725472964,-224.7,0.0003,2]
[319420568,1710725472973,-187.03919004,0.000311,2]
[319420569,1710725472982,-9183.96,0.000311,2]
[319420570,1710725472991,-9183.96,0.000311,2]
[319420571,1710725473000,-5768.15977316,0.000311,2]
[319420572,1710725473013,-3415.80022684,0.000311,2]
[319420573,1710725473022,-9183.96,0.000311,2]
[319420574,1710725473032,-9183.96,0.000311,2]
[319420575,1710725473041,-9183.96,0.000311,2]
[319420576,1710725473050,-500.0,0.000311,14]
[319420577,1710725473059,-500.0,0.000311,14]
[319420578,1710725473068,-500.0,0.000311,14]
[319420579,1710725473077,-500.0,0.000311,14]
[319420580,1710725473087,-500.0,0.000311,14]
[319420581,1710725473096,-500.0,0.000311,14]
[319420582,1710725473108,-500.0,0.000311,14]
[319420583,1710725473116,-500.0,0.000311,14]
[319420584,1710725473125,-500.0,0.000311,14]
[319420585,1710725473134,-500.0,0.000311,14]
[319420586,1710725473143,-500.0,0.000311,14]
[319420587,1710725473152,-500.0,0.000311,14]
[319420588,1710725473270,-500.0,0.000311,14]
[319420589,1710725473280,-500.0,0.000311,14]
[319420590,1710725473289,-500.0,0.000311,14]
[319420591,1710725473299,-500.0,0.000311,14]
[319420592,1710725473309,-500.0,0.000311,14]
[319420593,1710725473318,-500.0,0.000311,14]
[319420594,1710725473327,-500.0,0.000311,14]
[319420595,1710725473337,-500.0,0.000311,14]
[319420596,1710725473346,-500.0,0.000311,14]
[319420597,1710725473358,-500.0,0.000311,14]
[319420598,1710725473367,-500.0,0.000311,14]
[319420599,1710725473376,-500.0,0.000311,14]
[319420600,1710725473386,-500.0,0.000311,14]
[319420601,1710725473395,-500.0,0.000311,14]
[319420602,1710725473405,-500.0,0.000311,14]
[319420603,1710725473414,-500.0,0.000311,14]
[319420604,1710725473423,-500.0,0.000311,14]
[319420605,1710725473433,-500.0,0.000311,14]
[319420606,1710725473442,-500.0,0.000311,14]
[319420607,1710725473453,-500.0,0.000311,14]
[319420608,1710725473462,-717.0,0.000311,14]
[319420609,1710725473471,-500.0,0.000311,14]
[319420610,1710725473480,-500.0,0.000311,14]
[319420611,1710725473489,-500.0,0.000311,14]
[319420612,1710725473499,-500.0,0.000311,14]
[319420613,1710725473508,-500.0,0.000311,14]
[319420614,1710725473518,-500.0,0.000311,14]
[319420615,1710725473531,-500.0,0.000311,14]
[319420616,1710725473540,-500.0,0.000311,14]
[319420617,1710725473549,-500.0,0.000311,14]
[319420618,1710725473559,-554.0,0.000311,14]
[319420619,1710725473569,-179.343252,0.0003112,2]
[319420620,1710725473579,-510.0,0.00031232,120]
[319420621,1710725473589,-300.0,0.00031233,5]
[319420622,1710725473598,-150.0,0.00031233,2]
[319420623,1710725473610,-582.19524419,0.0003125,120]
[319420624,1710725473621,-300.0,0.000313,2]
[319420625,1710725473632,-221.377235,0.00031376,2]
[319420626,1710725473642,-175.931758,0.00031376,2]
[319420627,1710725473652,-500.0,0.00031412,14]
[319420628,1710725473662,-500.0,0.00031412,14]
[319420629,1710725473672,-500.0,0.00031412,14]
[319420630,1710725473681,-500.0,0.00031412,14]